[Event "*** Titled Tuesday Blitz"]
[Site "Chess.com"]
[Date "2019.01.01"]
[Round "7"]
[White "Iyael"]
[Black "sandager"]
[Result "1-0"]
[WhiteElo "2169"]
[BlackElo "1998"]
[TimeControl "180+2"]
[EndTime "14:40:08 PST"]
[Termination "Iyael won on time"]

1. e4 {[%clk 0:02:58.3]} 1... e5 {[%clk 0:03:00]} 2. Nf3 {[%clk 0:02:58.2]} 2...
Nc6 {[%clk 0:03:00.8]} 3. Nc3 {[%clk 0:02:58.8]} 3... Nf6 {[%clk 0:03:00.5]} 4.
d4 {[%clk 0:02:59.8]} 4... exd4 {[%clk 0:02:59.8]} 5. Nxd4 {[%clk 0:03:00.9]}
5... Bb4 {[%clk 0:02:54.8]} 6. Nxc6 {[%clk 0:03:01.3]} 6... bxc6 {[%clk
0:02:54.5]} 7. Bd3 {[%clk 0:03:02.7]} 7... O-O {[%clk 0:02:51.5]} 8. O-O {[%clk
0:03:01.7]} 8... d5 {[%clk 0:02:52]} 9. exd5 {[%clk 0:02:57.9]} 9... cxd5 {[%clk
0:02:53.3]} 10. Bg5 {[%clk 0:02:58.3]} 10... Bxc3 {[%clk 0:02:49]} 11. bxc3
{[%clk 0:02:57.8]} 11... c6 {[%clk 0:02:49.8]} 12. c4 {[%clk 0:02:46.4]} 12...
Qd6 {[%clk 0:02:47.2]} 13. Bh4 {[%clk 0:02:42.5]} 13... Bg4 {[%clk 0:02:33.7]}
14. Qd2 {[%clk 0:02:37.5]} 14... d4 {[%clk 0:02:24.1]} 15. Rfe1 {[%clk 0:02:31]}
15... Rfe8 {[%clk 0:02:19.8]} 16. h3 {[%clk 0:02:30.3]} 16... Bh5 {[%clk
0:02:17.9]} 17. Bg3 {[%clk 0:02:28.8]} 17... Qc5 {[%clk 0:02:11.6]} 18. Qf4
{[%clk 0:02:24.6]} 18... Bg6 {[%clk 0:02:03.2]} 19. Bh4 {[%clk 0:02:20.4]} 19...
Rxe1+ {[%clk 0:01:55.5]} 20. Rxe1 {[%clk 0:02:20]} 20... Re8 {[%clk 0:01:56.6]}
21. Rxe8+ {[%clk 0:02:17.1]} 21... Nxe8 {[%clk 0:01:57.2]} 22. Qb8 {[%clk
0:02:17.8]} 22... Kf8 {[%clk 0:01:46.6]} 23. Bg3 {[%clk 0:02:10.1]} 23... a5
{[%clk 0:01:39.8]} 24. Kh2 {[%clk 0:02:02.2]} 24... a4 {[%clk 0:01:39.7]} 25.
Qd8 {[%clk 0:01:58.2]} 25... a3 {[%clk 0:01:31.9]} 26. h4 {[%clk 0:01:55.9]}
26... Qe7 {[%clk 0:01:29.9]} 27. Qxd4 {[%clk 0:01:55]} 27... h5 {[%clk
0:01:21.2]} 28. c5 {[%clk 0:01:52.7]} 28... Kg8 {[%clk 0:01:15.6]} 29. Bxg6
{[%clk 0:01:52.3]} 29... fxg6 {[%clk 0:01:15.4]} 30. Bd6 {[%clk 0:01:51.9]}
30... Qe6 {[%clk 0:01:10.5]} 31. c4 {[%clk 0:01:51]} 31... Nf6 {[%clk
0:01:09.9]} 32. f3 {[%clk 0:01:50.3]} 32... Qe2 {[%clk 0:01:05.4]} 33. Be5
{[%clk 0:01:45.3]} 33... Kf7 {[%clk 0:00:56.3]} 34. Bxf6 {[%clk 0:01:44.6]}
34... gxf6 {[%clk 0:00:56.2]} 35. Qd7+ {[%clk 0:01:45.5]} 35... Kg8 {[%clk
0:00:54.3]} 36. Qd8+ {[%clk 0:01:40.2]} 36... Kg7 {[%clk 0:00:52.2]} 37. Qd7+
{[%clk 0:01:40.9]} 37... Kg8 {[%clk 0:00:52.7]} 38. Qxc6 {[%clk 0:01:41.9]}
38... Qxa2 {[%clk 0:00:52.3]} 39. Qxf6 {[%clk 0:01:41]} 39... Qxc4 {[%clk
0:00:47.9]} 40. Qxg6+ {[%clk 0:01:41.2]} 40... Kf8 {[%clk 0:00:46.8]} 41. Qf6+
{[%clk 0:01:42.3]} 41... Kg8 {[%clk 0:00:45]} 42. c6 {[%clk 0:01:43.2]} 42... a2
{[%clk 0:00:40.8]} 43. Kh3 {[%clk 0:01:40.3]} 43... Qf7 {[%clk 0:00:36.1]} 44.
Qxf7+ {[%clk 0:01:36.2]} 44... Kxf7 {[%clk 0:00:35.8]} 45. c7 {[%clk 0:01:37.6]}
45... a1=Q {[%clk 0:00:36.2]} 46. c8=Q {[%clk 0:01:38.4]} 46... Qe5 {[%clk
0:00:33.8]} 47. Qd7+ {[%clk 0:01:37.6]} 47... Kg6 {[%clk 0:00:30.4]} 48. Qc6+
{[%clk 0:01:38.3]} 48... Kg7 {[%clk 0:00:30.4]} 49. Qe4 {[%clk 0:01:37.4]} 49...
Qf6 {[%clk 0:00:22.3]} 50. g4 {[%clk 0:01:36.2]} 50... hxg4+ {[%clk 0:00:19.9]}
51. Qxg4+ {[%clk 0:01:37.2]} 51... Kh6 {[%clk 0:00:14.3]} 52. Kg3 {[%clk
0:01:34.6]} 52... Kh7 {[%clk 0:00:10.6]} 53. Qg5 {[%clk 0:01:33.5]} 53... Qd6+
{[%clk 0:00:08.9]} 54. Kg4 {[%clk 0:01:34.3]} 54... Qd4+ {[%clk 0:00:08.7]} 55.
Kh5 {[%clk 0:01:31.9]} 55... Qd6 {[%clk 0:00:04.3]} 56. Qf5+ {[%clk 0:01:31.7]}
56... Kg7 {[%clk 0:00:03.7]} 57. Kg4 {[%clk 0:01:30]} 1-0

[Event "*** Titled Tuesday Blitz"]
[Site "Chess.com"]
[Date "2019.01.01"]
[Round "7"]
[White "MFBerna"]
[Black "dmosesov"]
[Result "1-0"]
[WhiteElo "2339"]
[BlackElo "2354"]
[TimeControl "180+2"]
[EndTime "14:40:19 PST"]
[Termination "MFBerna won on time"]

1. e4 {[%clk 0:03:01.9]} 1... c5 {[%clk 0:02:59.4]} 2. Nf3 {[%clk 0:03:02.7]}
2... d6 {[%clk 0:02:59.2]} 3. d4 {[%clk 0:03:04]} 3... cxd4 {[%clk 0:03:00.2]}
4. Qxd4 {[%clk 0:03:05.9]} 4... a6 {[%clk 0:03:00]} 5. Nc3 {[%clk 0:03:06]} 5...
Nc6 {[%clk 0:03:00.6]} 6. Qe3 {[%clk 0:03:05.7]} 6... g6 {[%clk 0:02:56]} 7. h3
{[%clk 0:03:06.4]} 7... Bg7 {[%clk 0:02:56.5]} 8. Bc4 {[%clk 0:03:04.6]} 8...
Nf6 {[%clk 0:02:55.4]} 9. Bb3 {[%clk 0:03:04.8]} 9... O-O {[%clk 0:02:55.8]} 10.
O-O {[%clk 0:03:04.9]} 10... Nd7 {[%clk 0:02:39.1]} 11. Bd2 {[%clk 0:02:50]}
11... Nc5 {[%clk 0:02:38]} 12. Rad1 {[%clk 0:02:46.6]} 12... b5 {[%clk
0:02:34.8]} 13. Bc1 {[%clk 0:02:36.8]} 13... Bb7 {[%clk 0:02:33.7]} 14. Qg5
{[%clk 0:02:15]} 14... b4 {[%clk 0:02:12.2]} 15. Nd5 {[%clk 0:02:09]} 15... Nxe4
{[%clk 0:02:13.3]} 16. Qh4 {[%clk 0:02:09.2]} 16... Nf6 {[%clk 0:01:43]} 17. Ng5
{[%clk 0:02:00.7]} 17... h6 {[%clk 0:01:23.7]} 18. Nxf7 {[%clk 0:01:49.8]} 18...
Rxf7 {[%clk 0:01:18.8]} 19. Nxf6+ {[%clk 0:01:49.1]} 19... exf6 {[%clk
0:01:20.7]} 20. Qg3 {[%clk 0:01:12.6]} 20... Qe7 {[%clk 0:00:53.4]} 21. Rfe1
{[%clk 0:00:57]} 21... Qf8 {[%clk 0:00:47.9]} 22. Qxg6 {[%clk 0:00:51.8]} 22...
Ne5 {[%clk 0:00:47.9]} 23. Rxe5 {[%clk 0:00:47.9]} 23... fxe5 {[%clk 0:00:42.4]}
24. Bxh6 {[%clk 0:00:43.6]} 24... d5 {[%clk 0:00:40.4]} 25. Rxd5 {[%clk
0:00:43.6]} 25... Bxd5 {[%clk 0:00:25.2]} 26. Bxd5 {[%clk 0:00:45.5]} 26... Rd8
{[%clk 0:00:24.6]} 27. Be4 {[%clk 0:00:36.7]} 27... Qc5 {[%clk 0:00:11.4]} 28.
Qh7+ {[%clk 0:00:34.8]} 28... Kf8 {[%clk 0:00:12.6]} 29. Bxg7+ {[%clk
0:00:16.9]} 29... Rxg7 {[%clk 0:00:13.4]} 30. Qh8+ {[%clk 0:00:18.5]} 30... Ke7
{[%clk 0:00:14.8]} 31. Qxg7+ {[%clk 0:00:19.6]} 31... Kd6 {[%clk 0:00:16.2]} 32.
Qf6+ {[%clk 0:00:16.6]} 32... Kc7 {[%clk 0:00:17.2]} 33. g3 {[%clk 0:00:07.2]}
33... Rd2 {[%clk 0:00:11.2]} 34. h4 {[%clk 0:00:05.9]} 34... Qd4 {[%clk
0:00:07.7]} 35. Qc6+ {[%clk 0:00:05.7]} 35... Kd8 {[%clk 0:00:08.6]} 36. Qf6+
{[%clk 0:00:05.7]} 36... Kc7 {[%clk 0:00:10]} 37. Bg2 {[%clk 0:00:03.9]} 37...
e4 {[%clk 0:00:06.4]} 38. Qxd4 {[%clk 0:00:04.4]} 38... Rxd4 {[%clk 0:00:08.2]}
39. h5 {[%clk 0:00:05.1]} 39... Rd5 {[%clk 0:00:02.9]} 40. g4 {[%clk 0:00:04.9]}
1-0

[Event "*** Titled Tuesday Blitz"]
[Site "Chess.com"]
[Date "2019.01.01"]
[Round "7"]
[White "MissingLife"]
[Black "Vamostodorecto"]
[Result "0-1"]
[WhiteElo "2452"]
[BlackElo "2414"]
[TimeControl "180+2"]
[EndTime "14:40:24 PST"]
[Termination "Vamostodorecto won on time"]

1. Nf3 {[%clk 0:03:01.9]} 1... d5 {[%clk 0:03:00.1]} 2. c4 {[%clk 0:03:02.5]}
2... Nf6 {[%clk 0:02:59.7]} 3. g3 {[%clk 0:03:03.8]} 3... g6 {[%clk 0:03:00.2]}
4. Bg2 {[%clk 0:03:04.5]} 4... Bg7 {[%clk 0:02:58.3]} 5. cxd5 {[%clk 0:03:06.1]}
5... Nxd5 {[%clk 0:03:00.2]} 6. Nc3 {[%clk 0:03:07.3]} 6... O-O {[%clk
0:03:00.6]} 7. Qb3 {[%clk 0:03:04.9]} 7... Nb6 {[%clk 0:03:00.4]} 8. O-O {[%clk
0:03:01.7]} 8... Nc6 {[%clk 0:03:01.9]} 9. Rd1 {[%clk 0:02:52.2]} 9... a5 {[%clk
0:03:01.9]} 10. d4 {[%clk 0:02:51.3]} 10... a4 {[%clk 0:03:00.2]} 11. Qc2 {[%clk
0:02:48.6]} 11... Bg4 {[%clk 0:02:53.5]} 12. d5 {[%clk 0:02:35.6]} 12... Ne5
{[%clk 0:02:11.5]} 13. Nxe5 {[%clk 0:02:31.1]} 13... Bxe5 {[%clk 0:02:13.4]} 14.
Qe4 {[%clk 0:02:32.2]} 14... Bxc3 {[%clk 0:02:10.5]} 15. bxc3 {[%clk 0:02:32]}
15... Qd7 {[%clk 0:02:06.4]} 16. Bh6 {[%clk 0:02:07]} 16... Rfe8 {[%clk
0:02:01.3]} 17. Qd4 {[%clk 0:01:59.5]} 17... f6 {[%clk 0:02:01.7]} 18. c4 {[%clk
0:01:54.5]} 18... Bxe2 {[%clk 0:01:56.4]} 19. c5 {[%clk 0:01:50.6]} 19... Bxd1
{[%clk 0:01:54.5]} 20. Rxd1 {[%clk 0:01:52.5]} 20... Nc8 {[%clk 0:01:37]} 21.
Qh4 {[%clk 0:01:47.2]} 21... c6 {[%clk 0:01:28.3]} 22. Bh3 {[%clk 0:01:44]}
22... f5 {[%clk 0:01:15.1]} 23. Qd4 {[%clk 0:01:01.7]} 23... e5 {[%clk
0:01:11.4]} 24. Qc4 {[%clk 0:00:58.9]} 24... cxd5 {[%clk 0:01:07.5]} 25. Rxd5
{[%clk 0:01:00.8]} 25... Qf7 {[%clk 0:01:05.4]} 26. Bf1 {[%clk 0:01:01.7]} 26...
Ne7 {[%clk 0:00:47.7]} 27. Rd7 {[%clk 0:01:00.2]} 27... Rad8 {[%clk 0:00:38.8]}
28. Rxb7 {[%clk 0:00:42.1]} 28... Rd1 {[%clk 0:00:39.2]} 29. Kg2 {[%clk
0:00:41.3]} 29... Qd5+ {[%clk 0:00:38.4]} 30. Qxd5+ {[%clk 0:00:40.2]} 30...
Nxd5 {[%clk 0:00:40.3]} 31. Bc4 {[%clk 0:00:36]} 31... Rd4 {[%clk 0:00:40.6]}
32. Rg7+ {[%clk 0:00:30.1]} 32... Kh8 {[%clk 0:00:40.5]} 33. Bb5 {[%clk
0:00:29.9]} 33... Rc8 {[%clk 0:00:36.4]} 34. Rd7 {[%clk 0:00:25.6]} 34... Nc3
{[%clk 0:00:27.5]} 35. Bg7+ {[%clk 0:00:18.6]} 35... Kg8 {[%clk 0:00:27.5]} 36.
Rxd4 {[%clk 0:00:08.8]} 36... exd4 {[%clk 0:00:29.4]} 37. Bd7 {[%clk 0:00:05]}
37... Rd8 {[%clk 0:00:25.6]} 38. Bxd4 {[%clk 0:00:06.5]} 38... Rxd7 {[%clk
0:00:24.4]} 39. Bxc3 {[%clk 0:00:07.9]} 39... Rd5 {[%clk 0:00:21.7]} 40. Bb4
{[%clk 0:00:08.9]} 40... Kf7 {[%clk 0:00:20.5]} 41. a3 {[%clk 0:00:09.9]} 41...
Ke6 {[%clk 0:00:21.5]} 42. h4 {[%clk 0:00:10.9]} 42... Rd3 {[%clk 0:00:22.4]}
43. Kf1 {[%clk 0:00:10.1]} 43... Kd5 {[%clk 0:00:22.8]} 44. Ke2 {[%clk
0:00:11.6]} 44... Rb3 {[%clk 0:00:22.1]} 45. Kf1 {[%clk 0:00:10.9]} 45... h6
{[%clk 0:00:20.2]} 46. Kg2 {[%clk 0:00:10.9]} 46... Rxb4 {[%clk 0:00:18.9]} 47.
axb4 {[%clk 0:00:06.5]} 47... a3 {[%clk 0:00:20.8]} 0-1

[Event "*** Titled Tuesday Blitz"]
[Site "Chess.com"]
[Date "2019.01.01"]
[Round "7"]
[White "dolynachess"]
[Black "andresgv36"]
[Result "1-0"]
[WhiteElo "2384"]
[BlackElo "2348"]
[TimeControl "180+2"]
[EndTime "14:40:36 PST"]
[Termination "dolynachess won on time"]

1. d4 {[%clk 0:03:01.9]} 1... Nf6 {[%clk 0:02:54]} 2. c4 {[%clk 0:03:03.8]} 2...
g6 {[%clk 0:02:52.8]} 3. Nc3 {[%clk 0:03:03.8]} 3... Bg7 {[%clk 0:02:54]} 4. e4
{[%clk 0:03:04.5]} 4... d6 {[%clk 0:02:55.4]} 5. Nf3 {[%clk 0:03:03.9]} 5... O-O
{[%clk 0:02:56.6]} 6. Be2 {[%clk 0:03:05.5]} 6... e5 {[%clk 0:02:57.1]} 7. d5
{[%clk 0:03:07.1]} 7... Na6 {[%clk 0:02:57]} 8. Be3 {[%clk 0:03:07.6]} 8... Ng4
{[%clk 0:02:56.4]} 9. Bg5 {[%clk 0:03:08.9]} 9... f6 {[%clk 0:02:45]} 10. Bh4
{[%clk 0:03:10.1]} 10... Qe8 {[%clk 0:02:35.8]} 11. Nd2 {[%clk 0:03:07.6]} 11...
Nh6 {[%clk 0:02:33.4]} 12. f3 {[%clk 0:03:05.8]} 12... f5 {[%clk 0:02:34.3]} 13.
a3 {[%clk 0:03:01.8]} 13... c5 {[%clk 0:02:22.5]} 14. dxc6 {[%clk 0:02:58.9]}
14... bxc6 {[%clk 0:02:22.3]} 15. b4 {[%clk 0:03:00.4]} 15... Nc7 {[%clk
0:02:09.4]} 16. b5 {[%clk 0:02:47.4]} 16... Be6 {[%clk 0:01:32.5]} 17. bxc6
{[%clk 0:02:32.8]} 17... Qxc6 {[%clk 0:01:33.3]} 18. Nd5 {[%clk 0:02:34]} 18...
Bxd5 {[%clk 0:01:30.1]} 19. cxd5 {[%clk 0:02:33.3]} 19... Qd7 {[%clk 0:01:23.7]}
20. Rc1 {[%clk 0:02:33.4]} 20... Nb5 {[%clk 0:01:20.3]} 21. Qa4 {[%clk
0:02:25.6]} 21... a6 {[%clk 0:01:17.1]} 22. Bf2 {[%clk 0:02:03.3]} 22... fxe4
{[%clk 0:01:13]} 23. Nxe4 {[%clk 0:01:58.1]} 23... Nf5 {[%clk 0:01:09.3]} 24.
O-O {[%clk 0:01:55.2]} 24... Bh6 {[%clk 0:01:04.8]} 25. Rc6 {[%clk 0:01:52]}
25... Nbd4 {[%clk 0:00:59.6]} 26. Bd3 {[%clk 0:01:37.9]} 26... Nxc6 {[%clk
0:00:53.4]} 27. dxc6 {[%clk 0:01:36.5]} 27... Qd8 {[%clk 0:00:45.5]} 28. Rd1
{[%clk 0:01:17.7]} 28... Ne3 {[%clk 0:00:45.5]} 29. Bxe3 {[%clk 0:01:12.8]}
29... Bxe3+ {[%clk 0:00:46.2]} 30. Kh1 {[%clk 0:01:14.7]} 30... Kg7 {[%clk
0:00:31.9]} 31. Bc4 {[%clk 0:01:13]} 31... Qh4 {[%clk 0:00:26.3]} 32. c7 {[%clk
0:00:57.6]} 32... Qe7 {[%clk 0:00:18.2]} 33. Rxd6 {[%clk 0:00:53.4]} 33... Kh6
{[%clk 0:00:14.7]} 34. Rd7 {[%clk 0:00:44.7]} 34... Qh4 {[%clk 0:00:15.6]} 35.
Qd1 {[%clk 0:00:43.6]} 35... Rac8 {[%clk 0:00:10.1]} 36. Bxa6 {[%clk 0:00:43]}
36... Ra8 {[%clk 0:00:09.6]} 37. Bb7 {[%clk 0:00:39.4]} 37... Rxa3 {[%clk
0:00:05.6]} 38. c8=Q {[%clk 0:00:39.1]} 38... Rxc8 {[%clk 0:00:07.2]} 39. Bxc8
{[%clk 0:00:41]} 39... Bd4 {[%clk 0:00:08]} 40. Qc1+ {[%clk 0:00:34.5]} 40... g5
{[%clk 0:00:08.6]} 41. g3 {[%clk 0:00:27.3]} 41... Qh5 {[%clk 0:00:04.4]} 42.
Rd6+ {[%clk 0:00:21.3]} 42... Kg7 {[%clk 0:00:05.5]} 43. Qxg5+ {[%clk
0:00:22.2]} 43... Qxg5 {[%clk 0:00:06.6]} 44. Nxg5 {[%clk 0:00:24.1]} 44... Ra2
{[%clk 0:00:06.6]} 45. Ne6+ {[%clk 0:00:23.1]} 45... Kf7 {[%clk 0:00:07]} 46.
Nxd4 {[%clk 0:00:25]} 46... exd4 {[%clk 0:00:08.6]} 47. Rxd4 {[%clk 0:00:26.4]}
47... Rc2 {[%clk 0:00:10.4]} 48. Bg4 {[%clk 0:00:26.5]} 48... Kg7 {[%clk
0:00:11.7]} 49. Rd5 {[%clk 0:00:27.4]} 49... Rc1+ {[%clk 0:00:12.6]} 50. Kg2
{[%clk 0:00:28.3]} 1-0

[Event "*** Titled Tuesday Blitz"]
[Site "Chess.com"]
[Date "2019.01.01"]
[Round "7"]
[White "riconaipe"]
[Black "Kazakov_Konstantin"]
[Result "1-0"]
[WhiteElo "2442"]
[BlackElo "2550"]
[TimeControl "180+2"]
[EndTime "14:40:41 PST"]
[Termination "riconaipe won by resignation"]

1. d4 {[%clk 0:03:01.9]} 1... Nf6 {[%clk 0:03:00.4]} 2. c4 {[%clk 0:03:03.4]}
2... e6 {[%clk 0:03:00.1]} 3. Nc3 {[%clk 0:03:04.9]} 3... c5 {[%clk 0:03:00.4]}
4. d5 {[%clk 0:03:05.6]} 4... exd5 {[%clk 0:02:59.7]} 5. cxd5 {[%clk 0:03:07.3]}
5... d6 {[%clk 0:03:01.6]} 6. e4 {[%clk 0:03:08.7]} 6... g6 {[%clk 0:03:02.6]}
7. Nge2 {[%clk 0:03:10.4]} 7... Bg7 {[%clk 0:03:03.6]} 8. Ng3 {[%clk 0:03:12.1]}
8... O-O {[%clk 0:03:03.8]} 9. Be2 {[%clk 0:03:13.7]} 9... h5 {[%clk 0:03:03.3]}
10. O-O {[%clk 0:03:13.3]} 10... h4 {[%clk 0:03:03.6]} 11. Nh1 {[%clk
0:03:14.5]} 11... Re8 {[%clk 0:03:01.4]} 12. f3 {[%clk 0:03:15.5]} 12... a6
{[%clk 0:02:59.2]} 13. a4 {[%clk 0:03:15.1]} 13... Nbd7 {[%clk 0:02:58.5]} 14.
Nf2 {[%clk 0:03:15.9]} 14... Ne5 {[%clk 0:02:57.9]} 15. Be3 {[%clk 0:03:10.2]}
15... Bd7 {[%clk 0:02:47.9]} 16. Qd2 {[%clk 0:03:00.9]} 16... Qc7 {[%clk
0:02:40.4]} 17. h3 {[%clk 0:02:56.5]} 17... Bc8 {[%clk 0:02:33.2]} 18. f4 {[%clk
0:02:42.8]} 18... Ned7 {[%clk 0:02:31]} 19. Bf3 {[%clk 0:02:44.4]} 19... Rb8
{[%clk 0:02:30.8]} 20. Rab1 {[%clk 0:02:41.3]} 20... c4 {[%clk 0:02:29.8]} 21.
Rfc1 {[%clk 0:02:32.1]} 21... Nc5 {[%clk 0:02:27.3]} 22. b4 {[%clk 0:02:22.7]}
22... cxb3 {[%clk 0:02:25.7]} 23. e5 {[%clk 0:02:14.8]} 23... dxe5 {[%clk
0:02:26.4]} 24. d6 {[%clk 0:02:16.3]} 24... Qa5 {[%clk 0:02:26.2]} 25. fxe5
{[%clk 0:01:47.6]} 25... Rxe5 {[%clk 0:02:24.2]} 26. Bf4 {[%clk 0:01:48.7]}
26... Nfd7 {[%clk 0:02:21.7]} 27. Bxe5 {[%clk 0:01:39.4]} 27... Nxe5 {[%clk
0:02:21.8]} 28. Nce4 {[%clk 0:01:38.8]} 28... Qxd2 {[%clk 0:02:15.5]} 29. Nxd2
{[%clk 0:01:39.1]} 29... b6 {[%clk 0:02:15.5]} 30. Nxb3 {[%clk 0:01:38.5]} 30...
Nxa4 {[%clk 0:02:00]} 31. Na5 {[%clk 0:01:25.6]} 31... Nxf3+ {[%clk 0:01:39.3]}
32. gxf3 {[%clk 0:01:24.6]} 32... Bf5 {[%clk 0:01:36.9]} 33. Nc6 {[%clk
0:01:22.4]} 33... Re8 {[%clk 0:01:29.8]} 34. Ne7+ {[%clk 0:01:21.7]} 34... Kh7
{[%clk 0:01:31.3]} 35. Nxf5 {[%clk 0:01:21.2]} 35... gxf5 {[%clk 0:01:31]} 36.
Rc4 {[%clk 0:01:16.7]} 36... b5 {[%clk 0:01:25.1]} 37. Rc7 {[%clk 0:01:05.8]}
37... Rd8 {[%clk 0:01:21.4]} 38. Rd1 {[%clk 0:01:03.4]} 38... Kg6 {[%clk
0:01:21.5]} 39. d7 {[%clk 0:01:00.7]} 39... Bf6 {[%clk 0:01:13.7]} 40. Rc8
{[%clk 0:00:54]} 40... Nb6 {[%clk 0:01:12.1]} 41. Rxd8 {[%clk 0:00:53.4]} 41...
Bxd8 {[%clk 0:01:13.2]} 42. Nd3 {[%clk 0:00:50.5]} 42... f6 {[%clk 0:01:02.5]}
43. Nc5 {[%clk 0:00:41.9]} 43... Kf7 {[%clk 0:01:01.9]} 44. Nxa6 {[%clk
0:00:40.5]} 44... Nc4 {[%clk 0:00:58.5]} 45. Nb4 {[%clk 0:00:32.5]} 45... Ne5
{[%clk 0:00:57.1]} 46. f4 {[%clk 0:00:31.1]} 46... Nc4 {[%clk 0:00:31.7]} 47.
Nc6 {[%clk 0:00:27.7]} 47... Bb6+ {[%clk 0:00:32.4]} 48. Kh1 {[%clk 0:00:27.8]}
48... Ne3 {[%clk 0:00:26]} 49. d8=Q {[%clk 0:00:25.7]} 49... Bxd8 {[%clk
0:00:27.4]} 50. Rxd8 {[%clk 0:00:27.1]} 50... Ke6 {[%clk 0:00:27.8]} 51. Rb8
{[%clk 0:00:26.6]} 51... Kd5 {[%clk 0:00:28.1]} 52. Ne7+ {[%clk 0:00:24.9]}
52... Ke4 {[%clk 0:00:27.5]} 53. Rxb5 {[%clk 0:00:22.5]} 53... Kxf4 {[%clk
0:00:18.5]} 54. Nd5+ {[%clk 0:00:23.3]} 54... Nxd5 {[%clk 0:00:18.7]} 55. Rxd5
{[%clk 0:00:24.9]} 55... Kg3 {[%clk 0:00:19.1]} 56. Rxf5 {[%clk 0:00:24.5]}
56... Kxh3 {[%clk 0:00:21]} 57. Rxf6 {[%clk 0:00:25.9]} 57... Kg3 {[%clk
0:00:22.6]} 1-0

[Event "*** Titled Tuesday Blitz"]
[Site "Chess.com"]
[Date "2019.01.01"]
[Round "7"]
[White "Manukyan_Artak"]
[Black "oskariot"]
[Result "0-1"]
[WhiteElo "2389"]
[BlackElo "2559"]
[TimeControl "180+2"]
[EndTime "14:40:47 PST"]
[Termination "oskariot won by resignation"]

1. e4 {[%clk 0:03:01.9]} 1... e6 {[%clk 0:03:00.7]} 2. d4 {[%clk 0:03:02.8]}
2... d5 {[%clk 0:03:01.6]} 3. e5 {[%clk 0:03:04]} 3... c5 {[%clk 0:03:02.3]} 4.
c3 {[%clk 0:02:57.9]} 4... Nc6 {[%clk 0:03:02.8]} 5. Nf3 {[%clk 0:02:57.6]} 5...
Qb6 {[%clk 0:03:03.6]} 6. a3 {[%clk 0:02:58.6]} 6... a5 {[%clk 0:03:01.1]} 7. a4
{[%clk 0:02:51.3]} 7... cxd4 {[%clk 0:03:00.2]} 8. cxd4 {[%clk 0:02:50.7]} 8...
Bd7 {[%clk 0:03:01.3]} 9. Nc3 {[%clk 0:02:50.8]} 9... Bb4 {[%clk 0:03:00]} 10.
Bb5 {[%clk 0:02:47]} 10... Nge7 {[%clk 0:03:01.4]} 11. O-O {[%clk 0:02:47]}
11... O-O {[%clk 0:03:02]} 12. Be3 {[%clk 0:02:35.4]} 12... Rac8 {[%clk
0:03:01.5]} 13. Rc1 {[%clk 0:02:32]} 13... Nf5 {[%clk 0:02:58.3]} 14. Bd3 {[%clk
0:02:26.4]} 14... Nxe3 {[%clk 0:02:33.1]} 15. fxe3 {[%clk 0:02:27.1]} 15... Be7
{[%clk 0:02:34.6]} 16. Nb5 {[%clk 0:01:51.8]} 16... Nb4 {[%clk 0:02:32]} 17. Be2
{[%clk 0:01:50]} 17... Rxc1 {[%clk 0:02:25.6]} 18. Qxc1 {[%clk 0:01:51.1]} 18...
Rc8 {[%clk 0:02:27.5]} 19. Qb1 {[%clk 0:01:47.4]} 19... Nc2 {[%clk 0:02:10.8]}
20. Kf2 {[%clk 0:01:37.5]} 20... Nb4 {[%clk 0:01:34.4]} 21. Rc1 {[%clk
0:01:33.2]} 21... h6 {[%clk 0:01:31.1]} 22. Rxc8+ {[%clk 0:01:27.6]} 22... Bxc8
{[%clk 0:01:31.9]} 23. Qc1 {[%clk 0:01:28.8]} 23... Bd7 {[%clk 0:01:29.8]} 24.
g3 {[%clk 0:01:13.4]} 24... g6 {[%clk 0:01:16.9]} 25. h4 {[%clk 0:01:13.6]}
25... Kg7 {[%clk 0:01:15.3]} 26. Ne1 {[%clk 0:01:03.5]} 26... f6 {[%clk
0:01:03.2]} 27. Nf3 {[%clk 0:00:58.1]} 27... f5 {[%clk 0:00:48.4]} 28. Ne1
{[%clk 0:00:48.9]} 28... g5 {[%clk 0:00:46.3]} 29. hxg5 {[%clk 0:00:50.2]} 29...
hxg5 {[%clk 0:00:47.6]} 30. Qc3 {[%clk 0:00:27.3]} 30... Bc6 {[%clk 0:00:38.3]}
31. Nc2 {[%clk 0:00:26.5]} 31... Qd8 {[%clk 0:00:37.8]} 32. Nxb4 {[%clk
0:00:24.9]} 32... Bxb4 {[%clk 0:00:38.6]} 33. Qc1 {[%clk 0:00:25.7]} 33... Qh8
{[%clk 0:00:35.6]} 34. Qg1 {[%clk 0:00:24]} 34... g4 {[%clk 0:00:33]} 35. Bf1
{[%clk 0:00:20.5]} 35... Qh6 {[%clk 0:00:32.5]} 36. Ke2 {[%clk 0:00:20.2]} 36...
Bxb5+ {[%clk 0:00:21.4]} 37. axb5 {[%clk 0:00:20.9]} 37... Kg6 {[%clk
0:00:21.6]} 38. Qf2 {[%clk 0:00:20.6]} 38... Qh8 {[%clk 0:00:21.1]} 39. Qf4
{[%clk 0:00:20.9]} 39... Qc8 {[%clk 0:00:19.1]} 40. Kf2 {[%clk 0:00:21]} 40...
Qc2+ {[%clk 0:00:18.7]} 41. Be2 {[%clk 0:00:21.8]} 41... Qxb2 {[%clk 0:00:18]}
42. e4 {[%clk 0:00:22.6]} 42... Qxd4+ {[%clk 0:00:16.4]} 43. Qe3 {[%clk
0:00:23.5]} 43... Qxe3+ {[%clk 0:00:16.6]} 44. Kxe3 {[%clk 0:00:25.4]} 44...
Bc5+ {[%clk 0:00:15.1]} 45. Kf4 {[%clk 0:00:25.6]} 45... dxe4 {[%clk 0:00:16.1]}
46. Bc4 {[%clk 0:00:25.9]} 46... Kf7 {[%clk 0:00:15.5]} 47. Bb3 {[%clk
0:00:26.1]} 47... b6 {[%clk 0:00:13]} 48. Kg5 {[%clk 0:00:24.3]} 48... Be3+
{[%clk 0:00:12.7]} 49. Kh4 {[%clk 0:00:24.7]} 49... Bf2 {[%clk 0:00:13.9]} 50.
Bd1 {[%clk 0:00:21]} 50... Be1 {[%clk 0:00:11]} 51. Bb3 {[%clk 0:00:20.4]} 51...
Bc3 {[%clk 0:00:10.7]} 52. Kg5 {[%clk 0:00:21.2]} 52... Bxe5 {[%clk 0:00:11.5]}
0-1